fUST/lending_fUST_20260326
["ID","MTS","AMOUNT","RATE_DAILY","PERIOD"]
[20697,1774499443489,-587.0,9.08e-05,2]
[20699,1774499443498,-2668.51803276,9.1e-05,2]
[20701,1774499443508,-168.3888056,9.157e-05,2]
[20703,1774499443517,-407.75025,9.167e-05,2]
[20705,1774499443527,-2668.51803276,9.2e-05,2]
[20707,1774499443536,-175.653384,9.216e-05,2]
[20709,1774499443546,-2000.0,9.226e-05,2]
[20711,1774499443556,-668.9912,9.24e-05,2]
[20713,1774499443566,-2668.51803276,9.3e-05,2]
[20715,1774499443575,-2668.51803276,9.4e-05,2]
[20717,1774499443585,-599.60298507,9.432e-05,2]
[20719,1774499443594,-2398.4119403,9.432e-05,2]
[20721,1774499443605,-2668.51803276,9.5e-05,2]
[20723,1774499443614,-2185.17248039,9.6e-05,2]
[20969,1774499446281,-483.34555237,9.6e-05,2]
[20970,1774499446290,-2668.51803276,9.6e-05,2]
[20971,1774499446299,-539.8669027,9.665e-05,2]
[20972,1774499446309,-795.9579282,9.665e-05,2]
[20973,1774499446318,-2668.51803276,9.7e-05,2]
[20974,1774499446327,-864.0,9.755e-05,2]
[20975,1774499446337,-1977.74531188,9.774e-05,2]
[20976,1774499446498,-522.25468812,9.774e-05,2]
[20977,1774499446508,-404.94461612,9.8e-05,2]
[20978,1774499446520,-845.71297338,9.8e-05,2]
[20989,1774499480964,-884.5153074,8.326e-05,2]
[20993,1774499942472,500.0,2.01e-05,2]
[20994,1774499999182,-377.46,2.01e-05,2]
[20995,1774499999203,-622.54,7.403e-05,2]
[20996,1774500000247,-1000.0,7.403e-05,2]
[20997,1774500000592,-704.01528655,7.403e-05,2]
[20998,1774500000614,-295.98471345,7.652e-05,2]
[20999,1774500001014,-904.01528655,7.652e-05,2]
[21000,1774500001039,-95.98471345,7.652e-05,2]
[21001,1774500001455,-300.0,7.653e-05,2]
[21002,1774500001479,-300.0,7.653e-05,2]
[21003,1774500001503,-300.0,7.653e-05,2]
[21004,1774500001528,-100.0,7.653e-05,2]
[21005,1774500001986,-200.0,7.653e-05,2]
[21006,1774500002012,-300.0,7.653e-05,2]
[21007,1774500002037,-300.0,7.653e-05,2]
[21008,1774500002124,-200.0,7.653e-05,2]
[21009,1774500002460,-300.0,7.652e-05,2]
[21010,1774500002485,-100.0,7.653e-05,2]
[21011,1774500002509,-300.0,7.653e-05,2]
[21012,1774500002533,-300.0,7.653e-05,2]
[21013,1774500002768,-300.0,7.653e-05,2]
[21014,1774500002794,-300.0,7.653e-05,2]
[21015,1774500002819,-300.0,7.653e-05,2]
[21016,1774500002844,-100.0,7.653e-05,2]
[21017,1774500003092,-200.0,7.653e-05,2]
[21018,1774500003120,-300.0,7.653e-05,2]
[21019,1774500003145,-300.0,7.653e-05,2]
[21020,1774500003171,-200.0,7.653e-05,2]
[21021,1774500003411,-400.0,7.653e-05,2]
[21022,1774500003435,-537.6845,7.722e-05,2]
[21023,1774500003458,-62.3155,7.722e-05,2]
[21024,1774500003715,-1000.0,7.722e-05,2]
[21025,1774500004320,-528.0,7.653e-05,2]
[21026,1774500004351,-472.0,7.722e-05,2]
[21027,1774500004531,-616.4225,7.722e-05,2]
[21028,1774500004562,-383.5775,7.777e-05,2]
[21029,1774500004853,-174.0013265,7.777e-05,2]
[21030,1774500004884,-578.20924308,7.832e-05,2]
[21031,1774500004918,-247.78943042,7.887e-05,2]
[21032,1774500005326,-351.81355465,7.887e-05,2]
[21033,1774500025391,-250.52143727,2.625e-05,2]
[21034,1774500128279,-621.78829552,7.942e-05,2]
[21035,1774500128301,-378.21170448,7.997e-05,2]
[21036,1774500129461,-266.58275798,7.997e-05,2]
[21085,1774500632329,-859.11990399,8.116e-05,2]
[21086,1774500632385,-333.08877876,8.116e-05,2]
[21087,1774500632395,-66.77648821,8.116e-05,2]
[21088,1774500632407,-467.22351179,8.116e-05,2]
[21089,1774500632418,-1958.58479149,8.185e-05,2]
[21097,1774500640855,-4796.42066231,8.185e-05,2]
[21098,1774500640866,-202.067,8.254e-05,2]
[21099,1774500640876,-160.0,8.313e-05,2]
[21100,1774500640886,-300.0,8.315e-05,2]
[21101,1774500640895,-2560.87221304,8.316e-05,2]
[21102,1774500640905,-537.6845,8.321e-05,2]
[21103,1774500640914,-2150.738,8.321e-05,2]
[21104,1774500640924,-1401.0,8.326e-05,2]
[21105,1774500640935,-642.0,8.326e-05,2]
[21106,1774500640946,-2195.0,8.326e-05,2]
[21107,1774500640955,-557.5788265,8.376e-05,2]
[21108,1774500640964,-300.0,8.41e-05,2]
[21109,1774500640974,-571.0972387,8.415e-05,2]
[21110,1774500640983,-500.0,8.415e-05,2]
[21111,1774500640993,-578.20924308,8.431e-05,2]
[21112,1774500641002,-599.60298507,8.486e-05,2]
[21113,1774500641011,-162.380719,8.486e-05,2]
[21114,1774500641021,-151.0,8.486e-05,2]
[21115,1774500641030,-151.0,8.486e-05,2]
[21116,1774500641040,-151.0,8.486e-05,2]
[21117,1774500641049,-156.82605751,8.486e-05,2]
[21118,1774500641058,-537.6845,8.486e-05,2]
[21119,1774500641068,-300.0,8.491e-05,2]
[21121,1774500641077,-300.0,8.491e-05,2]
[21123,1774500641087,-300.0,8.491e-05,2]
[21124,1774500641096,-300.0,8.491e-05,2]
[21126,1774500641105,-300.0,8.491e-05,2]
[21127,1774500641115,-300.0,8.491e-05,2]
[21128,1774500641125,-300.0,8.491e-05,2]
[21129,1774500641134,-300.0,8.491e-05,2]
[21130,1774500641145,-300.0,8.491e-05,2]
[21131,1774500641155,-300.0,8.491e-05,2]
[21132,1774500641164,-300.0,8.491e-05,2]
[21133,1774500641173,-300.0,8.491e-05,2]
[21134,1774500641184,-300.0,8.491e-05,2]
[21135,1774500641194,-300.0,8.491e-05,2]
[21136,1774500641204,-300.0,8.491e-05,2]
[21137,1774500641213,-223.7967822,8.5e-05,2]
[21138,1774500641224,-621.78829552,8.541e-05,2]
[21139,1774500641235,-644.79446246,8.596e-05,2]
[21140,1774500641243,-320.93853629,8.651e-05,2]
[21141,1774500641253,-600.0,8.66e-05,2]
[21142,1774500641262,-2230.315306,8.869e-05,2]
[21143,1774500641272,-300.0,8.9e-05,2]
[21144,1774500641282,-1000.0,8.963e-05,2]
[21145,1774500641291,-283.57208865,9e-05,2]
[21146,1774500641302,-557.5788265,9.034e-05,2]
[21147,1774500641316,-283.57208865,9.1e-05,2]
[21148,1774500641326,-420.0,9.147e-05,2]
[21149,1774500641338,-283.57208865,9.2e-05,2]
[21150,1774500641349,-326.972,9.2e-05,2]
[21151,1774500641359,-1237.74163212,9.247e-05,2]
[21152,1774500641388,-845.15949572,9.247e-05,2]
[21153,1774500641777,-2.04404794,9.247e-05,2]
[21166,1774500643719,-453.0,9.247e-05,2]
[21167,1774500643778,-652.25,9.247e-05,2]
[21193,1774500646792,-1291.170842,9.247e-05,2]
[21349,1774501834275,-1200.0,7.6e-05,2]
[21350,1774501834285,-300.0,8.325e-05,2]
[21351,1774501834294,-537.0,8.325e-05,2]
[21352,1774501834303,-191.0,8.325e-05,2]
[21353,1774501834313,-209.218,8.326e-05,2]
[21354,1774501834322,-2195.0,8.326e-05,2]
[21355,1774501834331,-736.929994,8.326e-05,2]
[21356,1774501834343,-430.852006,8.326e-05,2]
[21357,1774501834360,-233.218,8.326e-05,2]
[21358,1774501834370,-642.0,8.326e-05,2]
[21359,1774501834379,-746.139,8.326e-05,2]
[21360,1774501834388,-184.0,8.326e-05,2]
[21361,1774501834398,-439.0,8.326e-05,2]
[21362,1774501834407,-2150.738,8.486e-05,2]
[21363,1774501834417,-300.0,8.491e-05,2]
[21364,1774501834426,-300.0,8.491e-05,2]
[21365,1774501834436,-300.0,8.491e-05,2]
[21367,1774501834444,-300.0,8.491e-05,2]
[21368,1774501834453,-300.0,8.491e-05,2]
[21370,1774501834462,-300.0,8.491e-05,2]
[21372,1774501834471,-300.0,8.491e-05,2]
[21374,1774501834480,-300.0,8.491e-05,2]
[21375,1774501834490,-300.0,8.491e-05,2]
[21376,1774501834499,-300.0,8.491e-05,2]
[21377,1774501834509,-300.0,8.491e-05,2]
[21378,1774501834518,-42.04137596,8.491e-05,2]
[21404,1774501841520,-257.95862404,8.491e-05,2]
[21405,1774501841530,-300.0,8.491e-05,2]
[21406,1774501841540,-300.0,8.491e-05,2]
[21407,1774501841549,-300.0,8.491e-05,2]
[21408,1774501841558,-600.0,8.66e-05,2]
[21409,1774501841567,-189.0480591,9e-05,2]
[21410,1774501841576,-2230.315306,9.034e-05,2]
[21411,1774501841585,-189.0480591,9.1e-05,2]
[21412,1774501841593,-420.0,9.157e-05,2]
[21413,1774501841602,-189.0480591,9.2e-05,2]
[21414,1774501841612,-1337.72717266,9.247e-05,2]
[21443,1774501847045,-935.91226336,9.247e-05,2]
[21444,1774501847055,-264.08773664,9.427e-05,2]
[21812,1774503031854,-384.768375,8.614e-05,2]
[21830,1774503037879,-156.231625,8.614e-05,2]
[21831,1774503037888,-178.33051798,8.615e-05,2]
[21842,1774503040457,-909.66948202,8.615e-05,2]
[21843,1774503040467,-300.0,8.615e-05,2]
[21844,1774503040476,-1200.0,8.615e-05,2]
[21845,1774503040486,-1401.0,8.616e-05,2]
[21846,1774503040495,-2195.0,8.616e-05,2]
[21847,1774503040506,-642.0,8.616e-05,2]
[21848,1774503040516,-439.0,8.616e-05,2]
[21849,1774503040527,-736.0,8.616e-05,2]
[21850,1774503040537,-184.0,8.616e-05,2]
[21851,1774503040546,-846.74462726,8.683e-05,2]
[21852,1774503040555,-3227.6909609,8.72e-05,2]
[21853,1774503040565,-1335.8248309,8.72e-05,2]
[21854,1774503040574,-1977.87440793,8.783e-05,2]
[21855,1774503040585,-131.51469381,8.787e-05,2]
[21859,1774503043144,-168.48530619,8.787e-05,2]
[21860,1774503043154,-300.0,8.787e-05,2]
[21861,1774503043163,-300.0,8.787e-05,2]
[21862,1774503043173,-300.0,8.787e-05,2]
[21863,1774503043183,-300.0,8.787e-05,2]
[21864,1774503043192,-300.0,8.787e-05,2]
[21865,1774503043202,-300.0,8.787e-05,2]
[21866,1774503043211,-300.0,8.787e-05,2]
[21867,1774503043220,-186.89838515,8.787e-05,2]
[21891,1774503048870,-113.10161485,8.787e-05,2]
[21893,1774503048880,-300.0,8.787e-05,2]
[21895,1774503048889,-300.0,8.787e-05,2]
[21897,1774503048898,-300.0,8.787e-05,2]
[21899,1774503048908,-300.0,8.787e-05,2]
[21901,1774503048917,-218.39399615,8.787e-05,2]
[21903,1774503048929,-81.60600385,8.787e-05,2]
[21905,1774503048938,-300.0,8.787e-05,2]
[21907,1774503048947,-187.77399613,8.844e-05,4]
[21915,1774503049029,-36.42996057,8.844e-05,4]
[21916,1774503049038,-2841.42319628,8.883e-05,2]
[21917,1774503049048,-600.0,8.962e-05,2]
[21918,1774503049058,-654.95398027,8.983e-05,2]
[21919,1774503049069,-2255.405377,8.983e-05,2]
[21920,1774503049082,-198.64483133,8.983e-05,2]
[21921,1774503049092,-1000.0,9e-05,2]
[21922,1774503049101,-2626.357973,9.002e-05,2]
[21923,1774503049110,-896.81582681,9.012e-05,4]
[21924,1774503049119,-428.41343999,9.064e-05,2]
[21925,1774503049129,-771.14419198,9.064e-05,2]
[21926,1774503049139,-669.75541646,9.064e-05,2]
[21928,1774503049148,-1370.92300797,9.064e-05,2]
[21929,1774503049157,-1000.0,9.1e-05,2]
[21931,1774503049167,-1000.0,9.1e-05,2]
[21932,1774503049176,-1000.0,9.1e-05,2]
[21933,1774503049186,-2017.83561031,9.178e-05,4]
[21935,1774503049195,-1000.0,9.2e-05,2]
[21936,1774503049206,-4323.51237524,9.283e-05,2]
[21937,1774503049215,-372.952,9.304e-05,2]
[21938,1774503049226,-3587.26330722,9.345e-05,4]
[21939,1774503049235,-2626.357973,9.381e-05,2]
[21940,1774503049245,-693.39384293,9.382e-05,4]
[21941,1774503049255,-500.0,9.383e-05,2]
[21942,1774503049265,-191.99030792,9.383e-05,2]
[21943,1774503049275,-500.0,9.383e-05,2]
[21944,1774503049285,-500.0,9.383e-05,2]
[21945,1774503049296,-500.0,9.383e-05,2]
[21946,1774503049305,-500.0,9.383e-05,2]
[21947,1774503049315,-2150.738,9.402e-05,2]
[21948,1774503049325,-500.0,9.405e-05,2]
[21949,1774503049335,-500.0,9.405e-05,2]
[21950,1774503049344,-500.0,9.405e-05,2]
[21951,1774503049354,-500.0,9.405e-05,2]
[21952,1774503049365,-500.0,9.405e-05,2]
[21953,1774503049374,-500.0,9.405e-05,2]
[21954,1774503049383,-500.0,9.405e-05,2]
[21955,1774503049392,-500.0,9.405e-05,2]
[21956,1774503049402,-500.0,9.405e-05,2]
[21957,1774503049412,-500.0,9.405e-05,2]
[21958,1774503049421,-500.0,9.405e-05,2]
[21959,1774503049430,-500.0,9.405e-05,2]
[21960,1774503049440,-500.0,9.405e-05,2]
[21961,1774503049450,-500.0,9.405e-05,2]
[21962,1774503049459,-500.0,9.405e-05,2]
[21963,1774503049468,-500.0,9.405e-05,2]
[21964,1774503049478,-575.0,9.405e-05,2]
[21965,1774503049487,-500.0,9.405e-05,2]
[21966,1774503049496,-500.0,9.405e-05,2]
[21967,1774503049505,-500.0,9.405e-05,2]
[21968,1774503049515,-500.0,9.405e-05,2]
[21969,1774503049524,-500.0,9.405e-05,2]
[21970,1774503049533,-500.0,9.405e-05,2]
[21971,1774503049543,-500.0,9.405e-05,2]
[21972,1774503049552,-500.0,9.405e-05,2]
[21973,1774503049561,-500.0,9.405e-05,2]
[21974,1774503049570,-195.0,9.405e-05,2]
[21975,1774503049580,-500.0,9.405e-05,2]
[21976,1774503049589,-500.0,9.405e-05,2]
[21977,1774503049598,-500.0,9.405e-05,2]
[21978,1774503049607,-500.0,9.405e-05,2]
[21979,1774503049616,-500.0,9.405e-05,2]
[21980,1774503049626,-500.0,9.405e-05,2]
[21981,1774503049635,-500.0,9.405e-05,2]
[21982,1774503049644,-500.0,9.405e-05,2]
[21983,1774503049653,-500.0,9.405e-05,2]
[21984,1774503049662,-500.0,9.405e-05,2]
[21985,1774503049672,-500.0,9.405e-05,2]
[21986,1774503049681,-408.98541346,9.405e-05,2]
[21987,1774503049690,-500.0,9.405e-05,2]
[21988,1774503049700,-500.0,9.405e-05,2]
[21989,1774503049708,-500.0,9.405e-05,2]
[21990,1774503049718,-260.97186599,9.407e-05,2]
[21991,1774503049727,-205058.43280435,9.408e-05,2]
[21992,1774503049739,-7107.2208789,9.408e-05,2]
[21993,1774503049751,-11450.0,9.408e-05,2]
[21994,1774503049762,-894.7255951,9.408e-05,2]
[22004,1774503081867,-1211.34997749,8.909e-05,2]
[22232,1774504231899,-351.995,7.362e-05,2]
[22233,1774504231957,-172.005,7.362e-05,2]
[22234,1774504231966,-1408.38933931,8.807e-05,2]
[22349,1774504238322,-591.61066069,8.807e-05,2]
[22350,1774504238332,-813.94928741,8.907e-05,2]
[22377,1774504243722,-1186.05071259,8.907e-05,2]
[22378,1774504243732,-300.0,8.908e-05,2]
[22379,1774504243742,-1200.0,8.908e-05,2]
[22380,1774504243752,-736.0,8.909e-05,2]
[22381,1774504243762,-184.0,8.909e-05,2]
[22382,1774504243772,-439.0,8.909e-05,2]
[22383,1774504243782,-2195.0,8.909e-05,2]
[22385,1774504243792,-1401.0,8.909e-05,2]
[22386,1774504243801,-500.0,9.001e-05,2]
[22387,1774504243811,-177.30796373,9.007e-05,2]
[22388,1774504243822,-1822.69203627,9.007e-05,2]
[22389,1774504243832,-182.68030619,9.106e-05,2]
[22390,1774504243841,-500.0,9.106e-05,2]
[22391,1774504243850,-500.0,9.106e-05,2]
[22392,1774504243861,-500.0,9.106e-05,2]
[22393,1774504243871,-175.0,9.106e-05,2]
[22394,1774504243881,-355.0,9.106e-05,2]
[22395,1774504243890,-267.66504594,9.106e-05,2]
[22396,1774504243900,-952.52218027,9.107e-05,2]
[22405,1774504246240,-15616.33631341,9.107e-05,2]
[22406,1774504246251,-4938.97079847,9.107e-05,2]
[22407,1774504246471,-2754.50393089,9.107e-05,2]
[22420,1774504881101,-540.0,8.568e-05,2]
[22421,1774504881127,-454.899293,8.568e-05,2]
[22422,1774504881157,-89.00163035,8.983e-05,2]
[22423,1774504881170,-410.99836965,8.983e-05,2]
[22424,1774504881179,-129.00163035,9.006e-05,2]
[22425,1774504881193,-454.899293,9.006e-05,2]
[22426,1774504881206,-500.0,9.006e-05,2]
[22603,1774505433882,-182.384061,4.148e-05,2]
[22605,1774505433892,-167.605939,7.599e-05,2]
[22634,1774505438299,-1032.394061,7.599e-05,2]
[22635,1774505438311,-2344.13343566,7.6e-05,2]
[22644,1774505441042,-6455.86656434,7.6e-05,2]
[22645,1774505441052,-300.0,7.751e-05,2]
[22646,1774505441062,-300.0,7.751e-05,2]
[22647,1774505441072,-300.0,7.751e-05,2]
[22648,1774505441081,-300.0,7.751e-05,2]
[22649,1774505441091,-300.0,7.751e-05,2]
[22650,1774505441100,-300.0,7.751e-05,2]
[22651,1774505441109,-300.0,7.751e-05,2]
[22652,1774505441118,-300.0,7.751e-05,2]
[22653,1774505441128,-300.0,7.751e-05,2]
[22654,1774505441137,-300.0,7.751e-05,2]
[22655,1774505441147,-300.0,7.751e-05,2]
[22656,1774505441157,-300.0,7.751e-05,2]
[22657,1774505441167,-300.0,7.751e-05,2]
[22658,1774505441176,-300.0,7.751e-05,2]
[22659,1774505441185,-300.0,7.751e-05,2]
[22660,1774505441196,-600.0,7.905e-05,2]
[22661,1774505441207,-182.384061,8.296e-05,2]
[22662,1774505441216,-1506.0,8.359e-05,2]
[22663,1774505441226,-164.81799059,8.442e-05,2]
[22664,1774505441236,-591.03138407,8.442e-05,2]
[22671,1774505443731,-375.28983913,8.442e-05,2]
[22677,1774505448313,-676.21224362,8.442e-05,2]
[22678,1774505448413,-1374.72311645,8.442e-05,2]
[22862,1774506638554,-509.78971537,7.137e-05,2]
[22863,1774506638563,-521.0,7.137e-05,2]
[22864,1774506638572,-300.0,7.237e-05,2]
[22865,1774506638582,-1200.0,7.237e-05,2]
[22866,1774506638591,-2587.84233427,7.238e-05,2]
[22867,1774506638600,-8071.34244125,7.238e-05,2]
[22868,1774506638610,-2773.57537171,7.238e-05,2]
[22869,1774506638619,-2142.06719996,7.277e-05,2]
[22870,1774506638628,-3084.57676794,7.277e-05,2]
[22872,1774506638637,-3382.99537811,7.277e-05,2]
[22874,1774506638648,-815.45633381,7.277e-05,2]
[22875,1774506638657,-5483.69203189,7.277e-05,2]
[22876,1774506638666,-6940.29772786,7.277e-05,2]
[22877,1774506638675,-1205.55974964,7.277e-05,2]
[22878,1774506638685,-2143.21733268,7.277e-05,2]
[22879,1774506638693,-300.0,7.382e-05,2]
[22880,1774506638703,-300.0,7.382e-05,2]
[22881,1774506638712,-300.0,7.382e-05,2]
[22882,1774506638721,-300.0,7.382e-05,2]
[22883,1774506638730,-300.0,7.382e-05,2]
[22884,1774506638739,-300.0,7.382e-05,2]
[22885,1774506638749,-300.0,7.382e-05,2]
[22886,1774506638758,-300.0,7.382e-05,2]
[22887,1774506638767,-300.0,7.382e-05,2]
[22888,1774506638776,-300.0,7.382e-05,2]
[22889,1774506638785,-300.0,7.382e-05,2]
[22890,1774506638794,-300.0,7.382e-05,2]
[22891,1774506638803,-300.0,7.382e-05,2]
[22892,1774506638812,-300.0,7.382e-05,2]
[22893,1774506638821,-300.0,7.382e-05,2]
[22894,1774506638830,-118.05597817,7.421e-05,2]
[22902,1774506640995,-381.94402183,7.421e-05,2]
[22903,1774506641005,-500.0,7.421e-05,2]
[22904,1774506641015,-182.71383775,7.421e-05,2]
[22905,1774506641024,-500.0,7.421e-05,2]
[22906,1774506641034,-500.0,7.421e-05,2]
[22907,1774506641043,-500.0,7.421e-05,2]
[22908,1774506641052,-500.0,7.421e-05,2]
[22909,1774506641061,-500.0,7.421e-05,2]
[22910,1774506641070,-500.0,7.421e-05,2]
[22911,1774506641079,-500.0,7.421e-05,2]
[22912,1774506641088,-500.0,7.421e-05,2]
[22913,1774506641098,-500.0,7.421e-05,2]
[22914,1774506641107,-500.0,7.421e-05,2]
[22915,1774506641116,-500.0,7.421e-05,2]
[22916,1774506641126,-416.64214042,7.421e-05,2]
[22921,1774506643780,-83.35785958,7.421e-05,2]
[22922,1774506643790,-500.0,7.421e-05,2]
[22923,1774506643799,-382.37328994,7.421e-05,2]
[22924,1774506643808,-500.0,7.421e-05,2]
[22925,1774506643817,-363.13143541,7.421e-05,2]
[22926,1774506643827,-500.0,7.421e-05,2]
[22927,1774506643836,-494.53309975,7.421e-05,2]
[22928,1774506643845,-186.03481884,7.421e-05,2]
[22929,1774506643854,-157.04594934,7.421e-05,2]
[22930,1774506643865,-342.95405066,7.421e-05,2]
[22931,1774506643875,-500.0,7.421e-05,2]
[22932,1774506643884,-432.42785079,7.421e-05,2]
[22933,1774506643894,-67.57214921,7.421e-05,2]
[22934,1774506643903,-500.0,7.421e-05,2]
[22935,1774506643912,-500.0,7.421e-05,2]
[22936,1774506643922,-500.0,7.421e-05,2]
[22937,1774506643931,-321.3311329,7.421e-05,2]
[22960,1774506646752,-178.6688671,7.421e-05,2]
[22961,1774506646761,-500.0,7.421e-05,2]
[22962,1774506646771,-315.0,7.421e-05,2]
[22963,1774506646780,-500.0,7.421e-05,2]
[22964,1774506646789,-500.0,7.421e-05,2]
[22965,1774506646797,-500.0,7.421e-05,2]
[22966,1774506646807,-500.0,7.421e-05,2]
[22967,1774506646816,-500.0,7.421e-05,2]
[22968,1774506646824,-500.0,7.421e-05,2]
[22969,1774506646834,-500.0,7.421e-05,2]
[22970,1774506646843,-500.0,7.421e-05,2]
[22971,1774506646852,-500.0,7.421e-05,2]
[22972,1774506646862,-500.0,7.421e-05,2]
[22973,1774506646871,-500.0,7.421e-05,2]
[22974,1774506646881,-500.0,7.421e-05,2]
[22975,1774506646891,-500.0,7.421e-05,2]
[22976,1774506646900,-500.0,7.421e-05,2]
[22977,1774506646909,-500.0,7.421e-05,2]
[22978,1774506646918,-500.0,7.421e-05,2]
[22979,1774506646927,-500.0,7.421e-05,2]
[22980,1774506646937,-129.72906495,7.421e-05,2]
[22981,1774506646952,-370.27093505,7.421e-05,2]
[22982,1774506646962,-500.0,7.421e-05,2]
[22983,1774506646972,-500.0,7.421e-05,2]
[22984,1774506646981,-500.0,7.421e-05,2]
[22985,1774506646991,-500.0,7.421e-05,2]
[22986,1774506647000,-500.0,7.421e-05,2]
[22987,1774506647010,-500.0,7.421e-05,2]
[22988,1774506647019,-500.0,7.421e-05,2]
[22989,1774506647028,-500.0,7.421e-05,2]
[22990,1774506647038,-500.0,7.421e-05,2]
[22991,1774506647047,-500.0,7.421e-05,2]
[22992,1774506647056,-500.0,7.421e-05,2]
[22993,1774506647064,-600.0,7.422e-05,2]
[22994,1774506647074,-274.72392247,7.422e-05,2]
[23275,1774507843912,-517.0,6.876e-05,2]
[23277,1774507843922,-281.84776747,6.876e-05,2]
[23278,1774507843932,-1127.39106988,6.876e-05,2]
[23280,1774507843941,-213.90232353,6.914e-05,2]
[23281,1774507843951,-855.6092941,6.914e-05,2]
[23282,1774507843960,-467.0,6.938e-05,2]
[23283,1774507843969,-3345.42830524,6.939e-05,2]
[23284,1774507843979,-193.3468354,7.057e-05,2]
[23300,1774507846791,-106.6531646,7.057e-05,2]
[23301,1774507846800,-349.88799177,7.058e-05,2]
[23302,1774507846810,-6301.14181319,7.058e-05,2]
[23329,1774508030878,-179.940783,3.176e-05,2]
[23330,1774508030901,-179.940783,4.234e-05,2]
[23331,1774508030924,-179.940783,5.293e-05,2]
[23332,1774508030946,-179.940783,6.352e-05,2]
[23333,1774508030967,-280.236868,6.876e-05,2]
[23334,1774508032425,-303.50313062,6.876e-05,2]
[23335,1774508032446,-696.49686938,6.876e-05,2]
[23336,1774508032972,-1000.0,6.876e-05,2]
[23337,1774508033396,-250.0,4.148e-05,2]
[23338,1774508033418,-638.46312512,6.876e-05,2]
[23339,1774508033443,-111.53687488,6.913e-05,2]
[23340,1774508033838,-188.46312512,6.913e-05,2]
[23341,1774508033860,-206.74124951,6.914e-05,2]
[23342,1774508033882,-604.79562537,6.914e-05,2]
[23343,1774508034135,-222.16937268,6.914e-05,2]
[23344,1774508034157,-777.83062732,6.914e-05,2]
[23345,1774508034475,-1000.0,6.914e-05,2]
[23346,1774508034847,-82.8406183,6.914e-05,2]
[23347,1774508034870,-917.1593817,6.994e-05,2]
[23348,1774508035150,-1000.0,6.994e-05,2]
[23349,1774508035492,-6.03640912,6.994e-05,2]
[23350,1774508035514,-993.96359088,7.058e-05,2]
[23351,1774508035965,-1000.0,7.058e-05,2]
[23352,1774508036263,-1000.0,7.058e-05,2]
[23353,1774508036603,-1000.0,7.058e-05,2]
[23356,1774508063172,-62.13223848,7.058e-05,2]
[23357,1774508063194,-300.0,7.197e-05,2]
[23358,1774508063218,-300.0,7.198e-05,2]
[23359,1774508063244,-300.0,7.198e-05,2]
[23360,1774508063334,-37.86776152,7.198e-05,2]
[23361,1774508064108,-262.13223848,7.198e-05,2]
[23362,1774508064134,-300.0,7.198e-05,2]
[23363,1774508064158,-300.0,7.198e-05,2]
[23364,1774508064181,-137.86776152,7.198e-05,2]
[23365,1774508064435,-162.13223848,7.198e-05,2]
[23366,1774508064458,-300.0,7.198e-05,2]
[23367,1774508064482,-300.0,7.198e-05,2]
[23368,1774508064505,-237.86776152,7.198e-05,2]
[23369,1774508064861,-62.13223848,7.198e-05,2]
[23370,1774508064886,-300.0,7.198e-05,2]
[23371,1774508064910,-300.0,7.198e-05,2]
[23372,1774508064933,-300.0,7.198e-05,2]
[23373,1774508064959,-37.86776152,7.198e-05,2]
[23374,1774508065293,-262.13223848,7.198e-05,2]
[23375,1774508065321,-300.0,7.198e-05,2]
[23376,1774508065347,-300.0,7.198e-05,2]